[Event "NOR-chT 2018"]
[Site "Bergen"]
[Date "2018.05.11"]
[Round "2"]
[White "Birkestrand, Odd"]
[Black "Tunsjo, Axel"]
[Result "0-1"]
[ECO "B22"]
[WhiteElo "1689"]
[BlackElo "1901"]
[Annotator "NA RC"]
[PlyCount "60"]
[EventDate "2018.??.??"]
[EventCountry "NOR"]
[SourceTitle "playchess.com"]
[Source "ChessBase"]
[SourceQuality "1"]
[TimeControl "40/5400:1800"]

1. e4 {[%emt 0:00:02]} c5 {[%emt 0:00:49]} 2. c3 {[%emt 0:00:19]} Nf6 {[%emt 0:01:07]} 3. e5 {[%emt 0:00:07]} Nd5 {[%emt 0:00:05]} 4. Nf3 {[%emt 0:00:10]} e6 {[%emt 0:00:36]} 5. Be2 {[%emt 0:02:10]} d6 {[%emt 0:00:35]} 6. d4 {[%emt 0:00:19]} cxd4 {[%emt 0:00:32]} 7. cxd4 {[%emt 0:00:02]} dxe5 {[%emt 0:00:02]} 8. dxe5 {[%emt 0:00:02]} Nc6 {[%emt 0:02:13]} 9. O-O {[%emt 0:02:34]} Qc7 {[%emt 0:01:52]} 10. Qa4 {[%emt 0:03:17]} Bd7 {[%emt 0:00:46]} 11. Qe4 {[%emt 0:00:14]} Be7 {[%emt 0:06:06]} 12. Bd2 $14 {[%emt 0:01:14]} O-O {[%emt 0:09:20]} 13. Nc3 {[%emt 0:00:46]} f5 {[%emt 0:08:04]} 14. Nxd5 {[%emt 0:17:12]} fxe4 {[%emt 0:00:18]} 15. Nxc7 {[%emt 0:00:10]} exf3 {[%emt 0:00:53]} 16. Bxf3 {[%emt 0:00:45]} Rac8 {[%emt 0:06:55]} 17. Bxc6 {[%emt 0:05:31]} bxc6 {[%emt 0:00:27]} 18. Na6 {[%emt 0:00:18]} c5 {[%emt 0:00:14]} 19. Rfc1 {[%emt 0:05:55]} Bb5 {[%emt 0:01:38]} 20. Nxc5 {[%emt 0:01:14]} Bxc5 {[%emt 0:00:02]} 21. Rxc5 {[%emt 0:00:27]} Rxc5 {[%emt 0:00:04]} 22. Bb4 {[%emt 0:00:06]} Rxe5 {[%emt 0:00:09]} 23. Bxf8 {[%emt 0:00:06]} Kxf8 {[%emt 0:00:05]} 24. a4 {[%emt 0:03:48]} Be8 {[%emt 0:01:29]} 25. Kf1 {[%emt 0:00:55]} Re4 {[%emt 0:00:29]} 26. b3 {[%emt 0:01:33]} Rb4 {[%emt 0:00:03]} 27. Ra3 {[%emt 0:00:28]} e5 {[%emt 0:00:08]} 28. Ke2 {[%emt 0:01:25]} Bf7 {[%emt 0:00:07]} 29. Kd3 {[%emt 0:00:08]} Rxb3+ {[%emt 0:00:08]} 30. Rxb3 {[%emt 0:00:02]} Bxb3 {[%emt 0:00:11]} 0-1

[Event "NOR-chT 2018"]
[Site "Bergen"]
[Date "2018.05.12"]
[Round "3"]
[White "Sjoberg, Isak"]
[Black "Fossan, Benjamin"]
[Result "1-0"]
[ECO "B31"]
[WhiteElo "2034"]
[BlackElo "1948"]
[Annotator "NA RC"]
[PlyCount "137"]
[EventDate "2018.??.??"]
[EventCountry "NOR"]
[SourceTitle "playchess.com"]
[Source "ChessBase"]
[SourceQuality "1"]
[TimeControl "40/5400:1800"]

{[%evp 8,137,29,19,18,29,32767,32767,32767,7,10,32767,8,2,7,11,21,0,3,-22,-31,-51,32767,1,32767,-29,32767,32767,32767,32767,32767,32767,32767,32767,32767,32767,-2,-19,0,32767,6,32767,32767,-60,32767,-12,32767,0,32767,32767,-39,-36,32767,-57,-33,-52,32767,32767,32767,32767,32767,11,90,111,119,103,113,104,158,133,127,125,157,32767,139,0,125,10,32767,32767,8,4,21,14,100,617,556,539,471,181,723,981,5097,6027,12597,136,46,132,29,8,34,0,8,0,0,0,29976,29971,29980,29982,12851,29983,29980,29984,29985,29986,12851,29986,29986,29987,29988,29989,29989,32767,32767,29990,29990,29991,29991,29992,29992,29993]} 1. e4 {[%emt 0:00:03]} c5 {[%emt 0:00:04]} 2. Nf3 {[%emt 0:00:27]} Nc6 {[%emt 0:00:13]} 3. Bb5 {[%emt 0:00:29]} g6 {[%emt 0:00:04]} 4. O-O {[%emt 0:00:38]} Bg7 {[%emt 0:00:06]} 5. d3 {[%emt 0:00:25]} e5 {[%emt 0:00:51] LiveBook: 14 Games B31: Sicilian: 2...Nc6 3 Bb5 g6} (5... d6 6. Re1 Bd7 7. c3 Nf6 8. d4 O-O 9. Bxc6 Bxc6 10. d5 Bd7 11. h3 b5 12. a4 b4 13. e5 dxe5 14. Nxe5 {½-½ (70) Zvjaginsev,V (2643)-Dubov,D (2666) Sochi 2017}) 6. Be3 {[%emt 0:00:08]} d6 {[%emt 0:00:52]} 7. a3 {[%emt 0:00:22]} Nge7 {[%emt 0:01:36]} 8. b4 {[%emt 0:02:18]} b6 {[%emt 0:01:33]} 9. bxc5 $146 {[%emt 0:04:48]} ({Predecessor:} 9. c3 O-O 10. Nbd2 h6 11. Re1 Kh7 12. bxc5 bxc5 13. Bc4 {½-½ (22) Petukhov,S (2393)-Rudenko,A (2132) ICCF email 2012}) 9... dxc5 {[%emt 0:02:00]} 10. Bc4 {[%emt 0:09:13]} O-O {[%emt 0:02:48]} 11. h3 {[%emt 0:10:34]} h6 {[%emt 0:03:18]} 12. Nc3 {[%emt 0:09:14]} Kh7 {[%emt 0:01:31]} 13. Nh2 {[%emt 0:09:13]} f5 {[%emt 0:11:00]} 14. exf5 {[%emt 0:01:59]} Bxf5 {[%emt 0:01:14]} 15. Ne4 {[%emt 0:02:33]} Nd5 {[%emt 0:07:20]} 16. Qd2 {[%emt 0:04:38]} Qd7 {[%emt 0:10:33]} 17. Rae1 {[%emt 0:04:08]} Nce7 {[%emt 0:04:43]} 18. Kh1 {[%emt 0:04:15]} Nxe3 {[%emt 0:03:03]} 19. Qxe3 {[%emt 0:01:13]} Nd5 {[%emt 0:01:39]} 20. Bxd5 {[%emt 0:01:35]} Qxd5 {[%emt 0:00:02]} 21. Nf3 {[%emt 0:01:35]} Rae8 {[%emt 0:05:39]} 22. Nh4 {[%emt 0:02:31]} Bxe4 {[%emt 0:02:30]} 23. dxe4 {[%emt 0:00:28]} Qd4 {[%emt 0:03:03]} 24. Qg3 {[%emt 0:00:47]} Qd6 {[%emt 0:01:38]} 25. Rd1 {[%emt 0:00:43]} ({White should try} 25. Qb3 $11) 25... Qe6 {[%emt 0:01:27]} 26. Qe3 {[%emt 0:03:05]} Rd8 {[%emt 0:01:18]} 27. Qe2 {[%emt 0:01:14]} Qf6 {[%emt 0:04:13]} 28. Qg4 {[%emt 0:01:35]} h5 {[%emt 0:03:10]} 29. Qg3 {[%emt 0:00:40]} Bh6 {[%emt 0:01:02]} 30. Nf3 {[%emt 0:03:07]} Bf4 {[%emt 0:01:05]} 31. Qh4 {[%emt 0:00:12]} Qxh4 {[%emt 0:00:44]} 32. Nxh4 {[%emt 0:00:02]} Bg5 {[%emt 0:02:08]} 33. Nf3 {[%emt 0:00:07]} Bf6 {[%emt 0:00:11]} 34. g4 {[%emt 0:00:45]} Rxd1 {[%emt 0:02:59]} (34... b5 $11 {remains equal.}) 35. Rxd1 {[%emt 0:00:06]} Bg7 {[%emt 0:00:42]} 36. Kg2 {[%emt 0:00:28]} hxg4 {[%emt 0:00:36]} 37. hxg4 {[%emt 0:01:05]} Rf4 {[%emt 0:00:03]} 38. Kg3 {[%emt 0:01:11]} Kg8 {[%emt 0:01:09]} 39. Rd8+ {[%emt 0:00:14]} Rf8 {[%emt 0:00:46]} 40. Rd7 {[%emt 0:01:03]} (40. Rd5 $16) 40... Rf7 {[%emt 0:30:16]} 41. Rd8+ {[%emt 0:05:45]} (41. Rd5 $16) 41... Rf8 {[%emt 0:00:00]} 42. Rxf8+ {[%emt 0:00:35]} Kxf8 {[%emt 0:00:00]} 43. c4 {[%emt 0:00:03]} a6 {[%emt 0:00:00]} 44. a4 {[%emt 0:00:10]} Ke8 {[%emt 0:00:00]} 45. g5 {[%emt 0:06:25]} Kd7 {[%emt 0:00:00]} (45... Ke7 $11 {keeps the balance.}) 46. Nh4 {[%emt 0:01:47]} b5 {[%emt 0:00:00]} 47. cxb5 {[%emt 0:00:04]} axb5 {[%emt 0:00:00]} 48. axb5 {[%emt 0:00:09]} c4 {[%emt 0:00:00] [#]} 49. Kf3 $1 {[%emt 0:00:05]} Kd6 {[%emt 0:00:00]} 50. Nxg6 {[%emt 0:00:27]} Kc5 {[%emt 0:00:00]} 51. b6 $2 {[%emt 0:00:20]} (51. Ke2 $18 {is the precise move to win.} Kxb5 52. Kd1) 51... Kxb6 {[%emt 0:00:00]} 52. Ke3 {[%emt 0:02:11]} Kc5 {[%emt 0:00:00]} 53. Ne7 {[%emt 0:00:28]} Kb4 $1 {[%emt 0:00:00]} 54. Nd5+ {[%emt 0:02:03]} Kb3 $1 {[%emt 0:00:00]} 55. f4 {[%emt 0:00:18]} c3 {[%emt 0:00:00]} 56. Nxc3 $1 {[%emt 0:00:30]} exf4+ $2 {[%emt 0:00:00]} (56... Kxc3 $11 57. f5 Bh8) 57. Kxf4 {[%emt 0:00:07]} Kxc3 {[%emt 0:00:00]} 58. e5 {[%emt 0:00:09]} Kd4 {[%emt 0:00:00]} 59. e6 {[%emt 0:00:04]} Bf8 {[%emt 0:00:00]} 60. g6 {[%emt 0:00:39]} Kd5 {[%emt 0:00:00] [#]} 61. e7 {[%emt 0:00:17]} Bxe7 {[%emt 0:00:00]} 62. g7 {[%emt 0:00:04]} Bd6+ {[%emt 0:00:00]} 63. Kf5 {[%emt 0:00:12]} Kd4 {[%emt 0:00:00]} 64. g8=Q {[%emt 0:00:04]} Bc5 {[%emt 0:00:00]} 65. Qe6 {[%emt 0:00:09]} Kc3 {[%emt 0:00:00]} 66. Qd5 {[%emt 0:00:10]} Bd4 {[%emt 0:00:00]} 67. Ke4 {[%emt 0:00:05]} Bf2 {[%emt 0:00:00]} 68. Qd3+ {[%emt 0:00:06]} Kb4 {[%emt 0:00:00]} 69. Qd2+ {[%emt 0:00:02]} 1-0

[Event "NOR-chT 2018"]
[Site "Bergen"]
[Date "2018.05.12"]
[Round "3"]
[White "Tunsjo, Axel"]
[Black "Dahl, Max"]
[Result "1-0"]
[ECO "B11"]
[WhiteElo "1901"]
[BlackElo "1926"]
[Annotator "NA RC"]
[PlyCount "121"]
[EventDate "2018.??.??"]
[EventCountry "NOR"]
[SourceTitle "playchess.com"]
[Source "ChessBase"]
[SourceQuality "1"]
[TimeControl "40/5400:1800"]

{[%evp 8,121,26,23,32767,50,32767,32767,27,16,22,14,32767,12,32767,22,23,0,4,32767,32767,32767,32767,32767,37,32767,32767,21,32767,10,37,11,32767,32767,32767,1,11,32767,42,31,61,69,87,32767,125,120,195,212,196,175,32767,32767,32767,748,1004,1224,32767,32767,1070,32767,32767,32767,32767,32767,32767,32767,32767,32767,32767,12438,12834,32767,32767,32767,32767,32767,12850,32767,32767,32767,32767,32767,32767,32767,32767,32767,32767,32767,32767,29977,29977,29978,32767,32767,32767,32767,29979,29980,29980,29982,29982,29982,29983,29983,29984,29985,29985,29983,32767,29989,32767,32767,32767,29992,29992,29986]} 1. e4 {[%emt 0:00:03]} c6 {[%emt 0:00:46]} 2. Nf3 {[%emt 0:02:18]} d5 {[%emt 0:01:33]} 3. Nc3 {[%emt 0:00:09]} Bg4 {[%emt 0:00:58]} 4. h3 {[%emt 0:00:16]} Bxf3 {[%emt 0:01:00]} 5. Qxf3 {[%emt 0:00:04]} dxe4 {[%emt 0:00:14]} 6. Nxe4 {[%emt 0:00:16] LiveBook: 47 Games} e6 {[%emt 0:00:07]} 7. g4 {[%emt 0:07:49] B11: Caro-Kann: Two Knights Variation} Nd7 {[%emt 0:03:41]} 8. d4 {[%emt 0:03:29]} Ngf6 {[%emt 0:02:30]} 9. g5 $146 {[%emt 0:02:14]} ({Predecessor:} 9. Ng3 Be7 10. Bg2 Qa5+ 11. c3 Qb5 12. a4 Qd5 13. a5 a6 {½-½ (48) Manea,A (2289)-Grigore,G (2486) Bucharest 2002}) 9... Nxe4 {[%emt 0:01:26]} 10. Qxe4 {[%emt 0:01:27]} Qc7 {[%emt 0:05:55]} 11. Bf4 {[%emt 0:02:25]} Bd6 {[%emt 0:00:54]} 12. Bxd6 {[%emt 0:00:15]} Qxd6 {[%emt 0:00:08]} 13. O-O-O {[%emt 0:00:33]} Qd5 {[%emt 0:10:24]} 14. Qxd5 {[%emt 0:00:10]} exd5 {[%emt 0:00:15]} 15. Re1+ {[%emt 0:06:33]} Kd8 {[%emt 0:01:17]} 16. h4 {[%emt 0:03:14]} Re8 {[%emt 0:03:38]} 17. Bd3 {[%emt 0:04:00]} Nf8 {[%emt 0:06:01]} 18. c3 {[%emt 0:04:43]} Kd7 {[%emt 0:02:33]} 19. f4 {[%emt 0:02:09]} Rxe1+ {[%emt 0:00:53]} 20. Rxe1 {[%emt 0:00:03]} Re8 {[%emt 0:00:35]} 21. Rxe8 {[%emt 0:02:19]} Kxe8 {[%emt 0:00:19]} 22. f5 {[%emt 0:00:22]} g6 {[%emt 0:02:38]} 23. Kd2 {[%emt 0:02:51]} Ke7 {[%emt 0:06:13]} 24. Ke3 {[%emt 0:02:47]} Kd6 {[%emt 0:07:19]} 25. Kf4 {[%emt 0:03:24]} b6 {[%emt 0:03:37]} 26. b4 {[%emt 0:01:06]} c5 {[%emt 0:15:07]} (26... b5 $16) 27. Bb5 {[%emt 0:03:03]} cxd4 {[%emt 0:00:45]} 28. cxd4 {[%emt 0:00:03]} gxf5 {[%emt 0:00:54]} 29. Kxf5 {[%emt 0:00:13]} Ne6 {[%emt 0:00:04]} 30. Kf6 {[%emt 0:01:11]} Nxd4 {[%emt 0:00:05]} 31. Bd3 {[%emt 0:01:17]} Nf3 {[%emt 0:00:30]} 32. h5 {[%emt 0:00:59]} Nd2 {[%emt 0:05:55]} 33. Bxh7 {[%emt 0:02:46]} Ne4+ {[%emt 0:00:00]} 34. Kf5 {[%emt 0:00:16]} Ng3+ {[%emt 0:00:17]} 35. Kg4 {[%emt 0:00:21]} Nxh5 {[%emt 0:00:05]} 36. Kxh5 {[%emt 0:00:07]} Ke5 {[%emt 0:00:05]} 37. Bg8 {[%emt 0:00:25]} f5 {[%emt 0:00:15]} 38. gxf6 {[%emt 0:01:08]} Kxf6 {[%emt 0:00:02]} 39. Bxd5 {[%emt 0:00:11]} Ke5 {[%emt 0:00:01]} 40. Bc4 {[%emt 0:00:19]} Kd4 {[%emt 0:30:03]} 41. Ba6 {[%emt 0:30:09]} b5 {[%emt 0:00:15]} 42. Bxb5 {[%emt 0:00:22]} Kc3 {[%emt 0:00:00]} 43. a3 {[%emt 0:00:01]} Kb3 {[%emt 0:00:01]} 44. Ba6 {[%emt 0:00:24]} Kxa3 {[%emt 0:00:05]} 45. b5 {[%emt 0:00:05]} Kb4 {[%emt 0:00:05]} 46. Kg5 {[%emt 0:00:08]} Kc5 {[%emt 0:00:01]} 47. Kf5 {[%emt 0:00:08]} Kd5 {[%emt 0:00:01]} 48. Kf4 {[%emt 0:01:11]} Kd4 {[%emt 0:00:01]} 49. Kf3 {[%emt 0:00:02]} Kd5 {[%emt 0:00:20]} 50. Ke3 {[%emt 0:00:09]} Kc5 {[%emt 0:00:06]} 51. Kd3 {[%emt 0:00:07]} Kd5 {[%emt 0:00:00]} 52. Kc3 {[%emt 0:00:00]} Kc5 {[%emt 0:00:00]} 53. Kb3 {[%emt 0:00:00]} Kd5 {[%emt 0:00:00]} 54. Kb4 {[%emt 0:00:00]} Kd6 {[%emt 0:00:00]} 55. Kc4 {[%emt 0:00:00]} Kd7 {[%emt 0:00:00]} 56. Kd5 {[%emt 0:00:00]} Kc7 {[%emt 0:00:00]} 57. Kc5 {[%emt 0:00:00]} Kb8 {[%emt 0:00:00]} 58. Kc6 {[%emt 0:00:00]} Ka8 {[%emt 0:00:00]} 59. Bc8 {[%emt 0:00:00]} Kb8 {[%emt 0:00:00]} 60. Bb7 {[%emt 0:00:00]} a5 {[%emt 0:00:00]} 61. bxa6 {[%emt 0:00:00]} 1-0

[Event "NOR-chT 2018"]
[Site "Bergen"]
[Date "2018.05.12"]
[Round "4"]
[White "Risting, Eivind Olav"]
[Black "Vea, Odin Blikra"]
[Result "1/2-1/2"]
[ECO "E32"]
[WhiteElo "2297"]
[BlackElo "2187"]
[Annotator "ChessBase"]
[PlyCount "121"]
[EventDate "2018.??.??"]
[EventCountry "NOR"]
[SourceTitle "playchess.com"]
[Source "ChessBase"]
[SourceQuality "1"]
[TimeControl "40/5400:1800"]

1. d4 {[%emt 0:02:00]} Nf6 {[%emt 0:00:03]} 2. c4 {[%emt 0:00:23]} e6 {[%emt 0:01:01]} 3. Nc3 {[%emt 0:00:10]} Bb4 {[%emt 0:00:05]} 4. Qc2 {[%emt 0:00:04]} O-O {[%emt 0:00:24]} 5. Nf3 {[%emt 0:00:32]} c5 {[%emt 0:00:26]} 6. dxc5 {[%emt 0:00:16]} Na6 {[%emt 0:01:10]} 7. g3 {[%emt 0:00:35]} Nxc5 {[%emt 0:00:31]} 8. Bg2 {[%emt 0:00:08]} Nfe4 {[%emt 0:01:28]} 9. O-O {[%emt 0:00:21]} Bxc3 {[%emt 0:00:34]} 10. bxc3 {[%emt 0:00:09]} Qa5 {[%emt 0:02:40]} 11. Nd4 {[%emt 0:12:38]} f5 {[%emt 0:08:46]} 12. Be3 {[%emt 0:07:00]} d6 {[%emt 0:13:12]} 13. f3 {[%emt 0:15:05]} Qxc3 {[%emt 0:02:51]} 14. Qxc3 {[%emt 0:01:16]} Nxc3 {[%emt 0:00:04]} 15. Rfc1 {[%emt 0:03:58]} N5a4 {[%emt 0:12:16]} 16. Bd2 {[%emt 0:17:19]} e5 {[%emt 0:00:54]} 17. Bxc3 {[%emt 0:00:04]} exd4 {[%emt 0:01:17]} 18. Bxd4 {[%emt 0:00:27]} Be6 {[%emt 0:01:24]} 19. f4 {[%emt 0:01:47]} Nc5 {[%emt 0:08:29]} 20. Rab1 {[%emt 0:01:50]} Rab8 {[%emt 0:02:24]} 21. Bxc5 {[%emt 0:01:57]} dxc5 {[%emt 0:00:04]} 22. Rxb7 {[%emt 0:04:47]} Rxb7 {[%emt 0:00:11]} 23. Bxb7 {[%emt 0:00:02]} Rd8 {[%emt 0:01:00]} 24. Rc2 {[%emt 0:05:13]} Rd4 {[%emt 0:00:46]} 25. Ba6 {[%emt 0:02:21]} Kf8 {[%emt 0:00:32]} 26. Kf2 {[%emt 0:00:22]} Ke7 {[%emt 0:01:37]} 27. Rb2 {[%emt 0:02:38]} Rd6 {[%emt 0:08:16]} 28. Rb7+ {[%emt 0:00:29]} Rd7 {[%emt 0:00:14]} 29. Rb8 {[%emt 0:00:55]} Rd6 {[%emt 0:00:42]} 30. Rb7+ {[%emt 0:00:52]} Rd7 {[%emt 0:00:05]} 31. Rxd7+ {[%emt 0:00:32]} Kxd7 {[%emt 0:00:21]} 32. Ke3 {[%emt 0:00:28]} Kc7 {[%emt 0:00:15]} 33. Kd3 {[%emt 0:00:31]} Kb6 {[%emt 0:04:08]} 34. Bb5 {[%emt 0:00:01]} g6 {[%emt 0:03:03]} 35. Kc3 {[%emt 0:00:01]} Bf7 {[%emt 0:01:17]} 36. Ba4 {[%emt 0:00:08]} Be6 {[%emt 0:00:34]} 37. Bc2 {[%emt 0:00:20]} Bd7 {[%emt 0:01:03]} 38. e4 {[%emt 0:00:30]} fxe4 {[%emt 0:01:36]} 39. Bxe4 {[%emt 0:00:02]} Kc7 {[%emt 0:00:41]} 40. Kd3 {[%emt 0:00:47]} Kd6 {[%emt 0:30:03]} 41. Ke3 {[%emt 0:30:54]} Be6 {[%emt 0:00:25]} 42. Bd3 {[%emt 0:00:00]} Bf7 {[%emt 0:00:00]} 43. g4 {[%emt 0:00:00]} h6 {[%emt 0:00:00]} 44. Ke4 {[%emt 0:00:00]} Be8 {[%emt 0:00:00]} 45. h4 {[%emt 0:00:00]} Bd7 {[%emt 0:00:00]} 46. Kf3 {[%emt 0:00:00]} Be8 {[%emt 0:00:00]} 47. Ke3 {[%emt 0:00:00]} Bf7 {[%emt 0:00:00]} 48. g5 {[%emt 0:00:00]} hxg5 {[%emt 0:00:00]} 49. hxg5 {[%emt 0:00:00]} Ke6 {[%emt 0:00:00]} 50. Be4 {[%emt 0:00:00]} Kd6 {[%emt 0:00:00]} 51. Kd3 {[%emt 0:00:00]} Be8 {[%emt 0:00:00]} 52. f5 {[%emt 0:00:00]} gxf5 {[%emt 0:00:00]} 53. Bxf5 {[%emt 0:00:00]} Ke5 {[%emt 0:00:00]} 54. Be4 {[%emt 0:00:00]} Bf7 {[%emt 0:00:00]} 55. g6 {[%emt 0:00:00]} Be6 {[%emt 0:00:00]} 56. g7 {[%emt 0:00:00]} Kf6 {[%emt 0:00:00]} 57. Bd5 {[%emt 0:00:00]} Bf5+ {[%emt 0:00:00]} 58. Be4 {[%emt 0:00:00]} Be6 {[%emt 0:00:00]} 59. Bd5 {[%emt 0:00:00]} Bf5+ {[%emt 0:00:00]} 60. Be4 {[%emt 0:00:00]} Be6 {[%emt 0:00:00]} 61. Bd5 {[%emt 0:00:00]} 1/2-1/2

[Event "NOR-chT 2018"]
[Site "Bergen"]
[Date "2018.05.12"]
[Round "4"]
[White "Aulin-Jansson, Joran"]
[Black "Mihajlov, Sebastian"]
[Result "1-0"]
[ECO "C00"]
[WhiteElo "2287"]
[BlackElo "2392"]
[Annotator "NA RC"]
[PlyCount "69"]
[EventDate "2018.??.??"]
[EventCountry "NOR"]
[SourceTitle "playchess.com"]
[Source "ChessBase"]
[SourceQuality "1"]
[TimeControl "40/5400:1800"]

1. e4 {[%emt 0:00:10]} e6 {[%emt 0:04:43]} 2. d3 {[%emt 0:01:06]} c5 {[%emt 0:00:28]} 3. g3 {[%emt 0:00:11]} Nc6 {[%emt 0:00:07]} 4. Bg2 {[%emt 0:00:03]} g6 {[%emt 0:00:15]} 5. Nc3 {[%emt 0:01:26]} Bg7 {[%emt 0:01:05]} 6. Be3 {[%emt 0:00:07]} d6 {[%emt 0:00:41]} 7. Nge2 {[%emt 0:00:30]} Nge7 {[%emt 0:00:11]} 8. h4 {[%emt 0:00:11] B26: Closed Sicilian: 3 g3, lines with early Be3} (8. d4 cxd4 9. Nxd4 O-O 10. O-O d5 11. Nxc6 bxc6 12. Na4 Ba6 13. Re1 Bb5 14. c3 dxe4 15. Nc5 Nd5 16. Bxe4 Nxe3 17. Rxe3 Qe7 18. Nb3 {0-1 (39) Piorun,K (2651)-Valsecchi,A (2501) Katowice 2017}) 8... h5 {[%emt 0:00:52]} 9. O-O {[%emt 0:06:33]} O-O {[%emt 0:01:09]} 10. Qd2 {[%emt 0:07:09]} Nd4 {[%emt 0:07:33]} 11. Nd1 {[%emt 0:00:55]} Kh7 $146 {[%emt 0:04:20]} ({Predecessor:} 11... e5 12. c3 Ne6 13. Bh6 d5 14. Bxg7 Kxg7 {0-1 (49) Szilagyi,Z-Eberth,Z (2215) Miskolc 1996}) 12. c3 {[%emt 0:00:09]} Ndc6 {[%emt 0:00:44]} 13. f4 {[%emt 0:01:52]} b6 {[%emt 0:02:28]} 14. f5 {[%emt 0:09:03]} Ng8 $2 {[%emt 0:08:15] [#]} ({But not} 14... gxf5 $6 15. exf5 exf5 16. Nf4 $16) (14... exf5 $11 15. exf5 Bxf5) 15. Bg5 $1 {[%emt 0:03:39]} Qc7 {[%emt 0:00:05]} 16. f6 {[%emt 0:00:50]} Bh8 {[%emt 0:00:00]} 17. d4 {[%emt 0:03:30]} Ba6 {[%emt 0:00:34]} 18. g4 {[%emt 0:04:16]} cxd4 {[%emt 0:00:51]} ({Much weaker is} 18... hxg4 $6 19. Ne3 $11) 19. gxh5 {[%emt 0:00:26]} dxc3 {[%emt 0:01:14]} 20. Ndxc3 {[%emt 0:00:32]} Ne5 {[%emt 0:00:13]} 21. Bh3 {[%emt 0:04:06]} Qc5+ {[%emt 0:14:18]} ({But not} 21... gxh5 22. Rad1 $15) 22. Kh1 {[%emt 0:01:50]} ({Of course not} 22. Be3 Qc7 $11) 22... Nd3 {[%emt 0:03:52]} ({Reject} 22... gxh5 $6 23. Ng3 $11) (22... Rac8 $16 {was worth a try.}) 23. Nf4 {[%emt 0:05:23]} ({Less strong is} 23. hxg6+ fxg6 24. f7 (24. Bxe6 Nxf6 25. Nf4 Nxf4 $15) 24... Nf2+ 25. Kg2 (25. Rxf2 Qxf2 26. fxg8=B+ Kxg8 $16) 25... Bxc3 $16) 23... Nxf4 {[%emt 0:01:42]} 24. Rxf4 {[%emt 0:00:08]} Qe5 {[%emt 0:08:31]} 25. Qf2 {[%emt 0:00:44]} Qc5 {[%emt 0:00:06]} 26. Qf3 {[%emt 0:00:25]} Nh6 {[%emt 0:04:21]} 27. Rg1 {[%emt 0:04:24]} Rg8 {[%emt 0:04:01]} 28. Bxh6 {[%emt 0:06:51]} Kxh6 {[%emt 0:00:05]} 29. Rg5 {[%emt 0:00:06]} Qd4 {[%emt 0:01:40]} 30. hxg6 {[%emt 0:00:32]} fxg6 {[%emt 0:00:00]} 31. Bxe6 {[%emt 0:00:51]} Rgf8 {[%emt 0:00:12] [#]} 32. Rxg6+ {[%emt 0:00:21]} Kxg6 {[%emt 0:00:06]} 33. Qg4+ {[%emt 0:00:07]} Kh6 {[%emt 0:00:04]} 34. Qg5+ {[%emt 0:00:06]} Kh7 {[%emt 0:00:03]} 35. Bf5# 1-0

[Event "NOR-chT 2018"]
[Site "Bergen"]
[Date "2018.05.12"]
[Round "4"]
[White "Nordquelle, Daniel"]
[Black "Madland, Kristoffer"]
[Result "1-0"]
[ECO "C16"]
[WhiteElo "2287"]
[BlackElo "2130"]
[Annotator "NA"]
[PlyCount "75"]
[EventDate "2018.??.??"]
[EventCountry "NOR"]
[SourceTitle "playchess.com"]
[Source "ChessBase"]
[SourceQuality "1"]
[TimeControl "40/5400:1800"]

{[%evp 10,73,-18,-11,32767,-32,-48,32767,0,-32,32767,4,0,-50,32767,18,32767,12,28,56,32767,32767,32767,104,123,104,126,81,82,81,119,85,32767,32767,32767,430,32767,466,436,32767,32767,32767,32767,32767,32767,370,32767,584,889,32767,788,793,32767,32767,32767,32767,576,583,558,629,32767,708,634,837,1980,29969]} 1. e4 {[%emt 0:02:34]} e6 {[%emt 0:01:26]} 2. d4 {[%emt 0:00:06]} d5 {[%emt 0:00:06]} 3. Nc3 {[%emt 0:00:06]} Bb4 {[%emt 0:00:24]} 4. e5 {[%emt 0:00:09]} Ne7 {[%emt 0:00:39]} 5. Qg4 {[%emt 0:00:29]} c5 {[%emt 0:02:24]} 6. dxc5 {[%emt 0:00:13]} ({Don't play} 6. Qxg7 Rg8 $17) 6... Nbc6 {[%emt 0:00:40]} 7. Bd2 {[%emt 0:00:08]} O-O {[%emt 0:01:30]} 8. O-O-O {[%emt 0:00:17]} f6 {[%emt 0:02:40]} 9. exf6 {[%emt 0:00:15]} Rxf6 {[%emt 0:00:15]} 10. Bd3 {[%emt 0:00:12] LiveBook: 24 Games} Bxc5 {[%emt 0:23:01] C17: French: 3 Nc3 Bb4 4 e5 c5 sidelines} (10... h6 11. Qh5 e5 12. f4 Bf5 13. fxe5 Nxe5 14. Bxf5 Rxf5 15. Qe2 N7c6 16. Nf3 d4 17. Qe4 Qd7 18. Qd5+ Qxd5 19. Nxd5 Bxd2+ 20. Nxd2 {1-0 (32) Perunovic,M (2578)-Ilic,D (2388) Valjevo 2011}) 11. Qh5 $146 {[%emt 0:02:54]} ({Predecessor:} 11. Bg5 Rf7 12. Nf3 Qf8 13. Be3 Bxe3+ 14. fxe3 h6 15. Qg3 Nf5 16. Bxf5 Rxf5 17. Rhe1 b5 18. Qc7 {1-0 (30) Raetsky,A (2431)-Spence,D (2233) Bugibba 2012}) 11... g6 {[%emt 0:02:22]} 12. Qh4 {[%emt 0:03:27]} Qf8 {[%emt 0:06:46]} 13. f4 {[%emt 0:05:23]} Nf5 {[%emt 0:01:28]} 14. Qe1 {[%emt 0:01:54]} Nb4 15. Bxf5 {[%emt 0:01:06]} Rxf5 {[%emt 0:03:38]} 16. Nf3 {[%emt 0:02:10]} Bd7 {[%emt 0:11:45]} 17. Ne5 {[%emt 0:05:26]} Be8 {[%emt 0:01:07]} 18. g4 {[%emt 0:07:25]} Rxf4 {[%emt 0:01:31]} 19. Bxf4 {[%emt 0:00:28]} Qxf4+ {[%emt 0:00:05]} 20. Kb1 {[%emt 0:00:08]} d4 {[%emt 0:01:26]} 21. Rf1 {[%emt 0:13:09]} Qxh2 {[%emt 0:02:16]} 22. Rf2 {[%emt 0:02:32]} Qh6 {[%emt 0:02:47]} 23. Ne4 {[%emt 0:02:55]} d3 {[%emt 0:01:44]} 24. Nf6+ {[%emt 0:03:03]} Kg7 {[%emt 0:02:23]} 25. Nxe8+ {[%emt 0:03:12]} Rxe8 {[%emt 0:00:07]} 26. Rf7+ {[%emt 0:00:05]} Kg8 {[%emt 0:00:11]} 27. cxd3 {[%emt 0:00:13]} Nc6 {[%emt 0:01:56]} 28. Rxb7 {[%emt 0:01:46]} Nd4 {[%emt 0:00:57]} 29. Nd7 {[%emt 0:03:31]} Be7 {[%emt 0:01:12]} 30. Qf2 {[%emt 0:02:48]} Qg7 {[%emt 0:00:41]} 31. Rf1 {[%emt 0:02:03]} Rc8 {[%emt 0:02:55]} 32. Nf6+ {[%emt 0:03:38]} Qxf6 {[%emt 0:01:42]} 33. Qxf6 {[%emt 0:00:06]} Bxf6 {[%emt 0:00:03]} 34. Rxf6 {[%emt 0:00:05]} Ne2 {[%emt 0:01:46]} 35. a4 {[%emt 0:00:34]} Rc1+ {[%emt 0:00:57]} 36. Ka2 {[%emt 0:00:05]} Rg1 {[%emt 0:00:10]} 37. Rxe6 {[%emt 0:00:29]} Nd4 {[%emt 0:00:24]} 38. Re8# {[%emt 0:00:06]} 1-0